fUST/lending_fUST_20240908
["ID","MTS","AMOUNT","RATE_DAILY","PERIOD"]
[337521787,1725733860315,-1000.0,0.00150684,7]
[337521788,1725733860325,-1000.0,0.00150684,7]
[337521789,1725733860335,-1000.0,0.00150684,7]
[337521790,1725733860345,-1000.0,0.00150684,7]
[337521791,1725733860355,-1000.0,0.00150684,7]
[337521792,1725733860365,-1145.91447662,0.00150684,7]
[337521793,1725733860375,-300.0,0.00152477,120]
[337521794,1725733860385,-1945.852307,0.001531,120]
[337521795,1725733860395,-688.96,0.00153424,120]
[337521796,1725733860406,-3161.89,0.00153424,120]
[337521797,1725733860417,-500.0,0.00153424,120]
[337521798,1725733860428,-1152.62,0.00153424,120]
[337521799,1725733860438,-1124.99,0.00153424,120]
[337521800,1725733860448,-560.72,0.00153424,120]
[337521801,1725733860458,-2174.31,0.00153424,120]
[337521802,1725733860468,-2074.5,0.00153424,120]
[337521803,1725733860478,-2862.78,0.00153424,120]
[337521804,1725733860489,-3000.59,0.00153424,120]
[337521805,1725733860498,-1000.0,0.00153424,120]
[337521806,1725733860509,-5530.21,0.00153424,120]
[337521807,1725733860519,-4234.13,0.00153424,120]
[337521808,1725733860528,-17584.32,0.00153424,120]
[337521809,1725733860537,-893.27,0.00153424,120]
[337521810,1725733860547,-1875.73,0.00153424,120]
[337521811,1725733860557,-942.92,0.00153424,120]
[337521812,1725733860567,-1536.27,0.00153424,120]
[337521813,1725733860576,-500.0,0.00153424,120]
[337521814,1725733860586,-3269.67,0.00153424,120]
[337521815,1725733860595,-1500.0,0.00155,120]
[337521816,1725733860605,-300.0,0.00155206,120]
[337521817,1725733860614,-300.0,0.00157934,120]
[337521818,1725733860624,-410.1493314,0.0015794,120]
[337521819,1725733860679,-410.1493314,0.0015794,120]
[337521820,1725733860691,-688.96,0.00158904,120]
[337521821,1725733860701,-3161.89,0.00158904,120]
[337521822,1725733860711,-500.0,0.00158904,120]
[337521823,1725733860720,-1152.62,0.00158904,120]
[337521824,1725733860730,-1124.99,0.00158904,120]
[337521825,1725733860740,-560.72,0.00158904,120]
[337521826,1725733860750,-2174.31,0.00158904,120]
[337521827,1725733860761,-2074.5,0.00158904,120]
[337521828,1725733860771,-2862.78,0.00158904,120]
[337521829,1725733860781,-3000.59,0.00158904,120]
[337521830,1725733860791,-1000.0,0.00158904,120]
[337521831,1725733860801,-5530.21,0.00158904,120]
[337521832,1725733860811,-4234.13,0.00158904,120]
[337521833,1725733860821,-17584.32,0.00158904,120]
[337521834,1725733860831,-893.27,0.00158904,120]
[337521835,1725733860842,-1875.73,0.00158904,120]
[337521836,1725733860853,-942.92,0.00158904,120]
[337521837,1725733860862,-1536.27,0.00158904,120]
[337521838,1725733860871,-500.0,0.00158904,120]
[337521839,1725733860881,-3269.67,0.00158904,120]
[337521840,1725733860890,-2000.0,0.0016,120]
[337521841,1725733860899,-1500.0,0.0016,120]
[337521842,1725733860910,-10000.0,0.0016,120]
[337521843,1725733860920,-300.0,0.00160662,120]
[337521844,1725733860931,-300.0,0.0016339,120]
[337521845,1725733860943,-10324.30568592,0.00164,120]
[337521846,1725733860953,-259.53902682,0.00164362,120]
[337521847,1725733860962,-5387.58,0.00164383,120]
[337521848,1725733860971,-688.96,0.00164383,120]
[337521849,1725733860980,-3161.89,0.00164383,120]
[337521850,1725733860990,-5000.0,0.00164383,120]
[337521851,1725733860999,-500.0,0.00164383,120]
[337521852,1725733861008,-1152.62,0.00164383,120]
[337521853,1725733861022,-1124.99,0.00164383,120]
[337521854,1725733861033,-560.72,0.00164383,120]
[337521855,1725733861042,-2174.31,0.00164383,120]
[337521856,1725733861052,-2074.5,0.00164383,120]
[337521857,1725733861062,-2000.0,0.00164383,120]
[337521858,1725733861071,-2862.78,0.00164383,120]
[337521859,1725733861081,-3000.59,0.00164383,120]
[337521860,1725733861090,-1000.0,0.00164383,120]
[337521861,1725733861100,-5530.21,0.00164383,120]
[337521862,1725733861109,-4234.13,0.00164383,120]
[337521863,1725733861119,-17584.32,0.00164383,120]
[337521864,1725733861128,-893.27,0.00164383,120]
[337521865,1725733861137,-1875.73,0.00164383,120]
[337521866,1725733861147,-942.92,0.00164383,120]
[337521867,1725733861157,-1536.27,0.00164383,120]
[337521868,1725733861167,-1100.0,0.0016498,120]
[337521869,1725733861182,-1500.0,0.00165,120]
[337521870,1725733861191,-152.7922975,0.00165626,120]
[337521871,1725733861200,-999.99,0.00166,120]
[337521872,1725733861209,-904.53,0.00166,120]
[337521873,1725733861218,-300.0,0.00166118,120]
[337521874,1725733861227,-300.0,0.00168847,120]
[337521875,1725733861237,-688.96,0.00169863,120]
[337521876,1725733861245,-3161.89,0.00169863,120]
[337521877,1725733861255,-561.67564573,0.00169863,120]
[337521878,1725733861264,-1152.62,0.00169863,120]
[337521879,1725733861273,-1124.99,0.00169863,120]
[337521880,1725733861283,-560.72,0.00169863,120]
[337521881,1725733861292,-2174.31,0.00169863,120]
[337521882,1725733861302,-2074.5,0.00169863,120]
[337521883,1725733861311,-2862.78,0.00169863,120]
[337521884,1725733861323,-3000.59,0.00169863,120]
[337521885,1725733861332,-392.82153516,0.00169863,120]
[337521886,1725733861343,-5530.21,0.00169863,120]
[337521887,1725733861353,-4234.13,0.00169863,120]
[337521888,1725733861364,-17584.32,0.00169863,120]
[337521889,1725733861373,-893.27,0.00169863,120]
[337521890,1725733861383,-1875.73,0.00169863,120]
[337521891,1725733861393,-942.92,0.00169863,120]
[337521892,1725733861403,-1536.27,0.00169863,120]
[337521893,1725733861413,-1004.0039,0.00169999,120]
[337521894,1725733861425,-1500.0,0.0017,120]
[337521895,1725733861438,-500.0,0.0017,120]
[337521896,1725733861447,-2000.0,0.0017,120]
[337521897,1725733861471,-300.0,0.00171575,120]
[337521898,1725733861493,-168.333084,0.00171847,120]
[337521899,1725733861558,-306.0,0.001728,120]
[337521900,1725733861581,-200.9293949,0.00173425,120]
[337521901,1725733861605,-300.0,0.001738,120]
[337521902,1725733861629,-300.0,0.00174303,120]
[337521903,1725733861652,-300.0,0.001748,120]
[337521904,1725733861676,-688.96,0.00175342,120]
[337521905,1725733861691,-3161.89,0.00175342,120]
[337521906,1725733861700,-1152.62,0.00175342,120]
[337521907,1725733861709,-1124.99,0.00175342,120]
[337521908,1725733861720,-560.72,0.00175342,120]
[337521909,1725733861732,-2174.31,0.00175342,120]
[337521910,1725733861743,-2074.5,0.00175342,120]
[337521911,1725733861752,-2862.78,0.00175342,120]
[337521912,1725733861762,-3000.59,0.00175342,120]
[337521913,1725733861771,-5530.21,0.00175342,120]
[337521914,1725733861781,-4234.13,0.00175342,120]
[337521915,1725733861790,-17584.32,0.00175342,120]
[337521916,1725733861799,-893.27,0.00175342,120]
[337521917,1725733861809,-1875.73,0.00175342,120]
[337521918,1725733861818,-942.92,0.00175342,120]
[337521919,1725733861830,-1536.27,0.00175342,120]
[337521920,1725733861841,-300.0,0.001758,120]
[337521921,1725733861851,-152.0,0.00176363,120]
[337521922,1725733861861,-300.0,0.001768,120]
[337521923,1725733861870,-1015132.94199559,0.00177,50]
[337521924,1725733861880,-300.0,0.00177031,120]
[337521925,1725733861889,-166.514222,0.00177745,120]
[337521926,1725733861899,-2000.0,0.00178082,120]
[337521927,1725733861908,-300.0,0.0017976,120]
[337521928,1725733861917,-1000.0,0.0018,120]
[337521929,1725733861927,-152.7922975,0.00180626,120]
[337521930,1725733861937,-689.15521824,0.00180821,120]
[337521931,1725733861946,-3162.028967,0.00180821,120]
[337521932,1725733861955,-1152.649,0.00180821,120]
[337521933,1725733861965,-1125.03,0.00180821,120]
[337521934,1725733861974,-560.87,0.00180821,120]
[337521935,1725733861984,-2174.43681506,0.00180821,120]
[337521936,1725733862005,-2074.5250671,0.00180821,120]
[337521937,1725733862020,-2862.98806742,0.00180821,120]
[337521938,1725733862039,-3000.59764977,0.00180821,120]
[337521939,1725733862059,-5530.24788,0.00180821,120]
[337521940,1725733862078,-4234.20388174,0.00180821,120]
[337521941,1725733862096,-17584.32475893,0.00180821,120]
[337521942,1725733862111,-893.34028105,0.00180821,120]
[337521943,1725733862127,-1875.78718244,0.00180821,120]
[337521944,1725733862144,-942.97349,0.00180821,120]
[337521945,1725733862164,-1536.47131407,0.00180821,120]
[337521946,1725733862179,-1228.4232281,0.00180952,120]
[337521947,1725733862193,-300.0,0.00182488,120]
[337521948,1725733862210,-45692.11757198,0.00184,120]
[337521949,1725733862226,-300.0,0.00185216,120]
[337521950,1725733862241,-300.0,0.00187944,120]
[337521951,1725733862255,-5000.0,0.0019,120]
[337521952,1725733862269,-300.0,0.00190672,120]
[337521953,1725733862284,-5000.0,0.0019178,120]
[337521954,1725733862299,-2000.0,0.0019178,120]
[337521955,1725733862312,-150.0,0.001933,120]
[337521956,1725733862328,-150.0,0.001933,120]
[337521957,1725733862344,-300.0,0.00193401,120]
[337521958,1725733862360,-150.0,0.001943,120]
[337521959,1725733862374,-150.0,0.001943,120]
[337521960,1725733862388,-200.0,0.001953,120]
[337521961,1725733862402,-200.0,0.001953,120]
[337521962,1725733862415,-152.7922975,0.00195626,120]
[337521963,1725733862430,-300.0,0.00196129,120]
[337521964,1725733862444,-300.0,0.00198857,120]
[337521965,1725733862458,-47746.9094907,0.00199207,60]
[337521966,1725733862473,-1000.0,0.00199999,120]
[337521967,1725733862486,-600.0,0.002,120]
[337521968,1725733862501,-10000.0,0.002,120]
[337521969,1725733862516,-500.0,0.002,120]
[337521970,1725733862530,-4996.48950796,0.002,120]
[337521971,1725733862546,-500.0,0.002,120]
[337521972,1725733862620,-3256.67374573,0.002,120]
[337521973,1725733862632,-1000.0,0.002,120]
[337521974,1725733862644,-300.0,0.00201585,120]
[337521975,1725733862655,-410.1493314,0.00202425,120]
[337521976,1725733862664,-300.0,0.00204314,120]
[337521977,1725733862677,-2000.0,0.00205479,120]
[337521978,1725733862690,-300.0,0.00207042,120]
[337521979,1725733862700,-300.0,0.0020977,120]
[337521980,1725733862711,-1000.0,0.0021,120]
[337521981,1725733862720,-1000.0,0.0021,120]
[337521982,1725733862730,-152.7922975,0.00210626,120]
[337521983,1725733862740,-300.0,0.00212498,120]
[337521984,1725733862749,-3917.18461198,0.0021275,28]
[337521985,1725733862761,-152.0,0.00213233,120]
[337521986,1725733862771,-300.0,0.00215226,120]
[337521987,1725733862781,-300.0,0.00217955,120]
[337521988,1725733862791,-5000.0,0.00219178,120]
[337521989,1725733862802,-2000.0,0.00219178,120]
[337521990,1725733862811,-300.0,0.00220683,120]
[337521991,1725733862821,-50000.0,0.002222,120]
[337521992,1725733862830,-300.0,0.00223411,120]
[337521993,1725733862840,-152.7922975,0.00225626,120]
[337521994,1725733862849,-300.0,0.00226139,120]
[337521995,1725733862859,-300.0,0.00228868,120]
[337521996,1725733862869,-1000.0,0.0023,120]
[337521997,1725733862878,-500.0,0.0023,120]
[337521998,1725733862888,-300.0,0.00231596,120]
[337521999,1725733862897,-2000.0,0.00232876,120]
[337522000,1725733862907,-300.0,0.00234324,120]
[337522001,1725733862916,-300.0,0.00237052,120]
[337522002,1725733862926,-300.0,0.0023978,120]
[337522003,1725733862936,-152.7922975,0.00240626,120]
[337522004,1725733862946,-300.0,0.00242509,120]
[337522005,1725733862955,-410.1493314,0.00244027,120]
[337522006,1725733862965,-97796.6160333,0.002444,120]
[337522012,1725734191409,-169.97,0.00035742,2]
[337522013,1725734191436,-164.774486,0.00038412,2]
[337522014,1725734191463,-164.774486,0.00038812,2]
[337522015,1725734191490,-164.774486,0.00039212,2]
[337522016,1725734191518,-164.774486,0.00039613,2]
[337522017,1725734191544,-500.0,0.0004,120]
[337522018,1725734191571,-164.774486,0.00040013,2]
[337522019,1725734191598,-164.774486,0.00040413,2]
[337522020,1725734191627,-500.0,0.00043836,120]
[337522021,1725734191653,-500.0,0.00043836,120]
[337522022,1725734191678,-562.735,0.00043836,120]
[337522023,1725734191707,-153.0,0.00047178,2]
[337522024,1725734191732,-153.0,0.00047315,2]
[337522025,1725734191758,-88888.0,0.000499,120]
[337522047,1725734835162,-237.4036,0.00034405,30]
[337522048,1725734835195,-152.59867659,0.00035689,2]
[337522049,1725734854131,-660.90003905,0.00034395,3]
[337522050,1725734945139,-151.0,0.0003,120]
[337522051,1725734945160,-792.8081414,0.00030576,2]
[337522052,1725734945182,-400.0,0.0003098,2]
[337522053,1725734945204,-400.0,0.0003098,2]
[337522054,1725734945228,-1660.99498836,0.00030981,2]
[337522055,1725734970114,-22948.91541617,0.00030981,2]
[337522074,1725735032395,-281.93565065,0.00025204,2]
[337522075,1725735032406,-288.13720016,0.00030981,2]
[337522076,1725735032435,-1.95239531,0.00030981,2]
[337522077,1725735032445,-1692.39,0.00033,7]
[337522078,1725735032454,-1546.9888614,0.00034295,2]
[337522165,1725735038474,-451.0678903,0.00034295,2]
[337522166,1725735038489,-1406.27446337,0.00034295,2]
[337522167,1725735038499,-207.33698578,0.00034314,2]
[337522168,1725735038509,-207.33698578,0.00034319,2]
[337522169,1725735038519,-207.33698578,0.00034324,2]
[337522170,1725735038529,-182.5,0.00034395,3]
[337522171,1725735038540,-400.0,0.00034403,2]
[337522172,1725735038552,-400.0,0.00034403,2]
[337522173,1725735038562,-547.53,0.00034413,3]
[337522174,1725735038571,-11329.53,0.00034414,3]
[337522175,1725735038581,-19410.0,0.00034414,3]
[337522176,1725735038592,-500.0,0.00034422,7]
[337522177,1725735038602,-269.0487176,0.00034422,7]
[337522178,1725735038611,-500.0,0.00034422,7]
[337522179,1725735038621,-500.0,0.00034422,7]
[337522180,1725735038631,-500.0,0.00034422,7]
[337522181,1725735038640,-500.0,0.00034422,7]
[337522182,1725735038650,-500.0,0.00034422,7]
[337522183,1725735038659,-500.0,0.00034422,7]
[337522184,1725735038668,-500.0,0.00034422,7]
[337522185,1725735038677,-500.0,0.00034422,7]
[337522186,1725735038687,-500.0,0.00034422,7]
[337522187,1725735038696,-331.36146055,0.00034422,7]
[337522188,1725735038705,-500.0,0.00034422,7]
[337522189,1725735038715,-500.0,0.00034422,7]
[337522190,1725735038724,-500.0,0.00034422,7]
[337522191,1725735038734,-500.0,0.00034422,7]
[337522192,1725735038743,-500.0,0.00034422,7]
[337522193,1725735038754,-278.02821305,0.00034422,7]
[337522194,1725735038763,-500.0,0.00034422,7]
[337522195,1725735038773,-500.0,0.00034422,7]
[337522196,1725735038783,-500.0,0.00034422,7]
[337522197,1725735038791,-500.0,0.00034422,7]
[337522198,1725735038801,-500.0,0.00034422,7]
[337522199,1725735038811,-500.0,0.00034422,7]
[337522200,1725735038823,-500.0,0.00034422,7]
[337522201,1725735038833,-500.0,0.00034422,7]
[337522202,1725735038843,-500.0,0.00034422,7]
[337522203,1725735038854,-42451.19292308,0.00034423,4]
[337522245,1725735040890,-68015.50739869,0.00034423,4]
[337522247,1725735040902,-16795.99031659,0.00034423,4]
[337524894,1725735934697,10037.8699038,0.00024963,2]
[337524895,1725735956077,1318.1623018,0.00024963,2]
[337524896,1725736037142,-261.1159566,0.00024569,2]
[337524897,1725736037162,-199.39496237,0.00024838,6]
[337524898,1725736049108,-405.15427061,0.00024838,6]
[337524899,1725736049132,-164.6176001,0.00025087,6]
[337524913,1725736152100,-439.93163288,0.00025087,6]
[337524914,1725736152121,-845.80695195,0.00025204,2]
[337524915,1725736152142,-960.1772774,0.00025313,2]
[337524916,1725736152163,-755.29464234,0.00025335,8]
[337524917,1725736152184,-183.166486,0.00025726,2]
[337524918,1725736152204,-300.0,0.00026099,2]
[337524919,1725736152226,-300.0,0.00026099,2]
[337524920,1725736152247,-24900.0,0.000261,2]
[337524921,1725736152270,-2052.67257,0.000261,2]
[337524922,1725736152293,-3463.24904149,0.00026974,2]
[337524923,1725736152316,-1580.6972054,0.00027074,2]
[337524924,1725736152336,-500.0,0.00027117,2]
[337524925,1725736152356,-500.0,0.00027117,2]
[337524926,1725736152378,-251.0,0.00027191,2]
[337524927,1725736152399,-3000.0,0.00027222,2]
[337524928,1725736152420,-324.36349148,0.00027287,2]
[337524929,1725736152441,-500.0,0.00027287,2]
[337524930,1725736152466,-269.0487176,0.00027287,2]
[337524931,1725736152496,-500.0,0.00027287,2]
[337524932,1725736152518,-450.0,0.00027287,2]
[337524933,1725736152541,-500.0,0.00027287,2]
[337524934,1725736152566,-500.0,0.00027287,2]
[337524935,1725736152588,-500.0,0.00027287,2]
[337524936,1725736152611,-500.0,0.00027287,2]
[337524937,1725736152632,-500.0,0.00027287,2]
[337524938,1725736152655,-500.0,0.00027287,2]
[337524939,1725736152678,-500.0,0.00027287,2]
[337524940,1725736152699,-500.0,0.00027287,2]
[337524941,1725736152723,-500.0,0.00027287,2]
[337524942,1725736152745,-500.0,0.00027287,2]
[337524943,1725736152767,-500.0,0.00027287,2]
[337524944,1725736152789,-500.0,0.00027287,2]
[337524945,1725736152811,-403.28718989,0.00027287,2]
[337524946,1725736152833,-500.0,0.00027287,2]
[337524947,1725736152855,-500.0,0.00027287,2]
[337524948,1725736152878,-500.0,0.00027287,2]
[337524949,1725736152900,-500.0,0.00027287,2]
[337524950,1725736152921,-500.0,0.00027287,2]
[337524951,1725736152944,-500.0,0.00027287,2]
[337524952,1725736152967,-500.0,0.00027287,2]
[337524953,1725736152992,-500.0,0.00027287,2]
[337524954,1725736153014,-500.0,0.00027287,2]
[337524955,1725736153035,-500.0,0.00027287,2]
[337524956,1725736153057,-500.0,0.00027287,2]
[337524957,1725736153079,-500.0,0.00027287,2]
[337524958,1725736153101,-500.0,0.00027287,2]
[337524959,1725736153123,-500.0,0.00027287,2]
[337524960,1725736153145,-500.0,0.00027287,2]
[337524961,1725736153168,-500.0,0.00027287,2]
[337524962,1725736153189,-200.0,0.00027287,2]
[337524963,1725736153211,-19150.4086549,0.0002729,2]
[337524964,1725736153241,-234.507702,0.00027327,2]
[337524965,1725736153263,-250.0,0.00027328,2]
[337524966,1725736153285,-250.0,0.00027403,2]
[337524967,1725736153308,-250.0,0.00027478,2]
[337524968,1725736153329,-250.0,0.00027553,2]
[337524969,1725736153351,-250.0,0.00027628,2]
[337524970,1725736153372,-500.0,0.00027665,5]
[337524971,1725736153392,-500.0,0.00027665,2]
[337524972,1725736153415,-250.0,0.00027703,2]
[337524973,1725736153436,-250.0,0.00027778,2]
[337524974,1725736153460,-250.0,0.00027853,2]
[337524975,1725736153484,-250.0,0.00027928,2]
[337524976,1725736153506,-250.0,0.00028003,2]
[337524977,1725736153541,-250.0,0.00028078,2]
[337524978,1725736153568,-250.0,0.00028153,2]
[337524979,1725736153591,-250.0,0.00028228,2]
[337524980,1725736153613,-177.0,0.00028242,2]
[337524981,1725736153638,-250.0,0.00028303,2]
[337524982,1725736153660,-250.0,0.00028378,2]
[337524983,1725736153681,-183.166486,0.00028434,2]
[337524984,1725736153703,-250.0,0.00028453,2]
[337524985,1725736153728,-250.0,0.00028528,2]
[337524986,1725736153750,-250.0,0.00028603,2]
[337524987,1725736153772,-250.0,0.00028678,2]
[337524988,1725736153794,-420.0,0.00028709,2]
[337524989,1725736153817,-250.0,0.00028753,2]
[337524990,1725736153838,-1555.7262011,0.00030137,3]
[337524991,1725736153858,-1048.6091838,0.00030395,2]
[337524992,1725736153879,-408.01998841,0.00031073,5]
[337524993,1725736153900,-220.174,0.00031246,28]
[337524994,1725736153923,-587.0,0.0003158,2]
[337524995,1725736155392,207.33698578,0.00027187,2]
[337524996,1725736157146,-500.80759738,0.00032764,5]
[337524997,1725736157168,-503.9059761,0.00032764,5]
[337524998,1725736157189,-153.0,0.00033541,2]
[337524999,1725736157210,-153.0,0.00033541,2]
[337525000,1725736157235,-153.0,0.00033541,2]
[337525001,1725736157257,-536.50931919,0.00034254,2]
[337525002,1725736157278,-547.53,0.00034334,3]
[337525003,1725736157392,-787.83112848,0.00034334,3]
[337525004,1725736160377,207.33698578,0.00030736,2]
[337525007,1725736173836,251.0,0.00031417,2]
[337525008,1725736214808,9.40325336,0.00030641,30]
[337525029,1725736232680,-186.68338064,0.00030641,30]
[337525031,1725736232691,-813.30256533,0.00034126,2]
[337525033,1725736232700,-207.33698578,0.00034284,2]
[337525034,1725736232710,-182.5,0.00034344,3]
[337525036,1725736232720,-536.50931919,0.0003435,2]
[337525038,1725736232730,-73.66774906,0.00034353,2]
[337525054,1725736238665,-326.33225094,0.00034353,2]
[337525055,1725736238678,-22888.1029183,0.00034354,4]
[337525056,1725736238688,-500.0,0.00034363,7]
[337525057,1725736238698,-500.0,0.00034363,7]
[337525058,1725736238708,-500.0,0.00034363,7]
[337525059,1725736238717,-500.0,0.00034363,7]
[337525060,1725736238727,-331.36146055,0.00034363,7]
[337525061,1725736238737,-500.0,0.00034363,7]
[337525062,1725736238748,-500.0,0.00034363,7]
[337525063,1725736238757,-500.0,0.00034363,7]
[337525064,1725736238767,-500.0,0.00034363,7]
[337525065,1725736238780,-500.0,0.00034363,7]
[337525066,1725736238789,-478.94268637,0.00034363,7]
[337525067,1725736238799,-500.0,0.00034363,7]
[337525068,1725736238809,-500.0,0.00034363,7]
[337525069,1725736238818,-500.0,0.00034363,7]
[337525070,1725736238828,-500.0,0.00034363,7]
[337525071,1725736238837,-500.0,0.00034363,7]
[337525073,1725736238849,-500.0,0.00034363,7]
[337525074,1725736238860,-500.0,0.00034363,7]
[337525075,1725736238869,-45776.2058365,0.00034364,4]
[337525076,1725736238879,-157.53344572,0.00034373,5]
[337525077,1725736238889,-11668.99813661,0.00034374,4]
[337525160,1725736649578,16671.5122566,0.00025924,62]
[337525161,1725736977469,181.975701,0.00019182,2]
[337525162,1725736977856,181.975701,0.00019855,2]
[337525165,1725737069512,2405.4979298,0.00019471,2]
[337525166,1725737082111,151.18254991,0.0002,2]
[337525167,1725737112142,456.4517905,0.00019431,2]
[337525168,1725737134220,1318.1623018,0.00019431,2]
[337525178,1725737236054,4283.2880768,0.00019464,2]
[337525179,1725737254779,190.0242159,0.00019432,2]
[337525181,1725737295056,2132.4617399,0.00019594,2]
[337525182,1725737295702,250.0,0.00019439,2]
[337525189,1725737350209,250.0,0.00019544,2]
[337525190,1725737350428,250.0,0.00019598,2]
[337525191,1725737350637,250.0,0.00019652,2]
[337525192,1725737350851,250.0,0.00019705,2]
[337525193,1725737351089,250.0,0.00019759,2]
[337525194,1725737351311,250.0,0.00019812,2]
[337525195,1725737351526,250.0,0.00019866,2]
[337525196,1725737351925,250.0,0.0001992,2]
[337525197,1725737352381,250.0,0.00019973,2]
[337525198,1725737360524,1203.0963072,0.00019471,2]
[337525199,1725737369355,24900.0,0.00019316,2]
[337525200,1725737377206,3000.0,0.00019316,2]
[337525201,1725737385264,9784.85871894,0.00019927,2]
[337525202,1725737405736,2126.7081475,0.00019318,2]
[337525203,1725737424717,32149.1883312,0.00019308,2]
[337525225,1725737431810,-250.0,0.00020027,2]
[337525226,1725737431823,-250.0,0.0002008,2]
[337525227,1725737431834,-250.0,0.00020134,2]
[337525228,1725737431845,-250.0,0.00020188,2]
[337525229,1725737431856,-80.36557,0.00020241,2]
[337525232,1725737431873,-169.63443,0.00020241,2]
[337525233,1725737431884,-250.0,0.00020295,2]
[337525234,1725737431894,-267.11401726,0.00020298,2]
[337525235,1725737432503,2318.7597607,0.00019461,2]
[337525236,1725737433055,201.5352138,0.00019306,2]
[337525249,1725737438197,-954.77487164,0.00020298,2]
[337525251,1725737438206,-1221.88888888,0.00020299,2]
[337525253,1725737438216,-1221.88888888,0.00020299,2]
[337525255,1725737438226,-250.0,0.00020348,2]
[337525257,1725737438244,-4408.83482911,0.00020377,2]
[337525258,1725737438254,-300.0,0.00020398,2]
[337525259,1725737438265,-500.0,0.00020399,2]
[337525260,1725737438274,-500.0,0.00020399,2]
[337525261,1725737438284,-500.0,0.00020399,2]
[337525262,1725737438293,-500.0,0.00020399,2]
[337525263,1725737438303,-500.0,0.00020399,2]
[337525264,1725737438313,-500.0,0.00020399,2]
[337525265,1725737438323,-172.90728949,0.00020399,2]
[337525266,1725737438332,-544.52889626,0.00020399,2]
[337525267,1725737438342,-252.6638583,0.00020399,2]
[337525268,1725737438351,-500.0,0.00020399,2]
[337525269,1725737438360,-500.0,0.00020399,2]
[337525270,1725737438369,-500.0,0.00020399,2]
[337525271,1725737438378,-500.0,0.00020399,2]
[337525272,1725737438387,-500.0,0.00020399,2]
[337525273,1725737438396,-500.0,0.00020399,2]
[337525274,1725737438405,-500.0,0.00020399,2]
[337525275,1725737438415,-500.0,0.00020399,2]
[337525276,1725737438425,-500.0,0.00020399,2]
[337525277,1725737438434,-500.0,0.00020399,2]
[337525278,1725737438443,-500.0,0.00020399,2]
[337525279,1725737438453,-500.0,0.00020399,2]
[337525280,1725737438462,-500.0,0.00020399,2]
[337525281,1725737438471,-500.0,0.00020399,2]
[337525282,1725737438485,-500.0,0.00020399,2]
[337525283,1725737438494,-500.0,0.00020399,2]
[337525284,1725737438503,-500.0,0.00020399,2]
[337525285,1725737438513,-500.0,0.00020399,2]
[337525286,1725737438524,-500.0,0.00020399,2]
[337525287,1725737438533,-500.0,0.00020399,2]
[337525288,1725737438543,-55238.8249095,0.000204,2]
[337525289,1725737438553,-250.0,0.00020402,2]
[337525290,1725737438563,-250.0,0.00020455,2]
[337525291,1725737438573,-250.0,0.00020509,2]
[337525292,1725737438582,-181.975701,0.00020528,2]
[337525293,1725737438591,-3654.402229,0.00020529,2]
[337525294,1725737438600,-250.0,0.00020563,2]
[337525295,1725737438609,-365.0,0.000206,3]
[337525296,1725737438619,-6859.78637293,0.0002061,2]
[337525326,1725737446253,-6343.86375646,0.0002061,2]
[337525327,1725737446353,-251.0,0.00020822,2]